fUSD/lending_fUSD_20241110
["ID","MTS","AMOUNT","RATE_DAILY","PERIOD"]
[341884981,1731268233806,-1589.86452159,0.0001485,2]
[341884982,1731268233815,-1334.37925202,0.00014855,2]
[341884983,1731268233825,-1334.37925202,0.00014866,2]
[341884984,1731268233834,-1334.37925202,0.00014877,2]
[341884985,1731268233844,-1334.37925202,0.00014889,2]
[341884986,1731268233853,-41138.7002,0.00014894,2]
[341884987,1731268233863,-199.16067805,0.00014894,2]
[341884988,1731268233872,-159.17455381,0.00014898,2]
[341884989,1731268233881,-1409.5851,0.00014899,2]
[341884990,1731268233892,-500.0,0.00014899,2]
[341884991,1731268233901,-500.0,0.00014899,2]
[341884992,1731268233910,-500.0,0.00014899,2]
[341884993,1731268233919,-500.0,0.00014899,2]
[341884994,1731268233928,-500.0,0.00014899,2]
[341884995,1731268233937,-500.0,0.00014899,2]
[341884996,1731268233947,-524.17496985,0.00014899,2]
[341884997,1731268233957,-500.0,0.00014899,2]
[341884998,1731268233967,-988.93,0.00014899,2]
[341884999,1731268233976,-500.0,0.00014899,2]
[341885000,1731268233989,-199.36695576,0.00014899,2]
[341885001,1731268233999,-500.0,0.00014899,2]
[341885002,1731268234009,-500.0,0.00014899,2]
[341885003,1731268234018,-500.0,0.00014899,2]
[341885004,1731268234028,-535.57476612,0.00014899,2]
[341885005,1731268234037,-500.0,0.00014899,2]
[341885006,1731268234047,-500.0,0.00014899,2]
[341885007,1731268234056,-510.33,0.00014899,2]
[341885008,1731268234066,-500.0,0.00014899,2]
[341885009,1731268234075,-799.69,0.00014899,2]
[341885010,1731268234084,-527.62,0.00014899,2]
[341885011,1731268234093,-1176.18,0.00014899,2]
[341885012,1731268234102,-500.0,0.00014899,2]
[341885013,1731268234111,-2059.55,0.00014899,2]
[341885014,1731268234121,-500.0,0.00014899,2]
[341885015,1731268234130,-961.17,0.00014899,2]
[341885016,1731268234139,-500.0,0.00014899,2]
[341885017,1731268234148,-500.0,0.00014899,2]
[341885018,1731268234157,-504.66624267,0.00014899,2]
[341885019,1731268234166,-500.0,0.00014899,2]
[341885020,1731268234176,-500.0,0.00014899,2]
[341885021,1731268234186,-150.0,0.00014899,2]
[341885022,1731268234195,-500.0,0.00014899,2]
[341885023,1731268234204,-500.0,0.00014899,2]
[341885024,1731268234214,-159.17455381,0.000149,2]
[341885025,1731268234224,-8422.96722617,0.000149,2]
[341885026,1731268234235,-199.16067804,0.000149,2]
[341885027,1731268234244,-1334.37925202,0.000149,2]
[341885028,1731268234254,-150.0,0.00014915,2]
[341885029,1731268234263,-1908.794,0.00014933,2]
[341885030,1731268234272,-500.0,0.00014973,2]
[341885031,1731268234281,-420.0,0.00014977,2]
[341885032,1731268234290,-928.4516491,0.00014988,2]
[341885033,1731268234300,-895.18496374,0.00014988,2]
[341885034,1731268234309,-407.6644132,0.00014988,2]
[341885035,1731268234318,-808.5816624,0.0001499,2]
[341885036,1731268234327,-688.7116757,0.0001499,2]
[341885037,1731268234336,-568.8416889,0.0001499,2]
[341885038,1731268234346,-448.9717022,0.0001499,2]
[341885039,1731268234355,-500.0,0.00014993,2]
[341885040,1731268234373,-500.0,0.00014993,2]
[341885041,1731268234385,-500.0,0.00014993,2]
[341885042,1731268234394,-500.0,0.00014994,2]
[341885043,1731268234404,-765.52,0.00014994,2]
[341885044,1731268234413,-500.0,0.00014994,2]
[341885045,1731268234422,-500.0,0.00014994,2]
[341885046,1731268234431,-217.74386889,0.00014994,2]
[341885047,1731268234441,-500.0,0.00014994,2]
[341885048,1731268234450,-422.8,0.00014994,2]
[341885049,1731268234460,-500.0,0.00014994,2]
[341885050,1731268234469,-500.0,0.00014994,2]
[341885051,1731268234478,-173.72,0.00014994,2]
[341885052,1731268234492,-500.0,0.00014994,2]
[341885053,1731268234501,-500.0,0.00014994,2]
[341885054,1731268234516,-500.0,0.00014994,2]
[341885055,1731268234526,-500.0,0.00014994,2]
[341885056,1731268234536,-500.0,0.00014994,2]
[341885057,1731268234547,-557.12,0.00014994,2]
[341885058,1731268234556,-500.0,0.00014994,2]
[341885059,1731268234566,-500.0,0.00014994,2]
[341885060,1731268234575,-500.0,0.00014994,2]
[341885061,1731268234585,-500.0,0.00014994,2]
[341885062,1731268234595,-500.0,0.00014994,2]
[341885063,1731268234605,-511.47,0.00014994,2]
[341885064,1731268234615,-301.26257092,0.00014994,2]
[341885065,1731268234625,-500.0,0.00014994,2]
[341885066,1731268234876,-500.0,0.00014994,2]
[341885067,1731268234886,-500.0,0.00014994,2]
[341885068,1731268234895,-500.0,0.00014994,2]
[341885069,1731268234904,-249.62,0.00014994,2]
[341885070,1731268234913,-500.0,0.00014994,2]
[341885071,1731268234922,-277.06,0.00014994,2]
[341885072,1731268234932,-536.97,0.00014994,2]
[341885073,1731268234941,-500.0,0.00014994,2]
[341885074,1731268234950,-500.0,0.00014994,2]
[341885075,1731268234960,-500.0,0.00014994,2]
[341885076,1731268234970,-1000.0,0.00014994,2]
[341885077,1731268234979,-1000.0,0.00014994,2]
[341885078,1731268234991,-1000.0,0.00014994,2]
[341885079,1731268235000,-1000.0,0.00014994,2]
[341885080,1731268235009,-1000.0,0.00014994,2]
[341885081,1731268235019,-1000.0,0.00014994,2]
[341885082,1731268235028,-1000.0,0.00014994,2]
[341885083,1731268235038,-1000.0,0.00014994,2]
[341885084,1731268235047,-1000.0,0.00014994,2]
[341885085,1731268235056,-1000.0,0.00014994,2]
[341885086,1731268235067,-1000.0,0.00014994,2]
[341885087,1731268235076,-1000.0,0.00014994,2]
[341885088,1731268235085,-1000.0,0.00014994,2]
[341885089,1731268235095,-1000.0,0.00014994,2]
[341885090,1731268235105,-547.23878386,0.00014994,2]
[341885091,1731268235115,-500.0,0.00014994,2]
[341885092,1731268235124,-500.0,0.00014994,2]
[341885093,1731268235133,-500.0,0.00014994,2]
[341885094,1731268235143,-500.0,0.00014994,2]
[341885095,1731268235152,-500.0,0.00014994,2]
[341885096,1731268235163,-500.0,0.00014994,2]
[341885097,1731268235173,-500.0,0.00014994,2]
[341885098,1731268235182,-1193.84,0.00014994,2]
[341885099,1731268235191,-1193.84,0.00014994,2]
[341885100,1731268235201,-1193.84,0.00014994,2]
[341885101,1731268235211,-1193.84,0.00014994,2]
[341885102,1731268235221,-1193.84,0.00014994,2]
[341885103,1731268235235,-1193.84,0.00014994,2]
[341885104,1731268235244,-1193.84,0.00014994,2]
[341885105,1731268235253,-1193.84,0.00014994,2]
[341885106,1731268235262,-500.0,0.00014994,2]
[341885107,1731268235272,-1193.84,0.00014994,2]
[341885108,1731268235281,-500.0,0.00014994,2]
[341885109,1731268235290,-500.0,0.00014994,2]
[341885110,1731268235299,-1193.84,0.00014994,2]
[341885111,1731268235309,-500.0,0.00014994,2]
[341885112,1731268235318,-1193.84,0.00014994,2]
[341885113,1731268235327,-500.0,0.00014994,2]
[341885114,1731268235337,-500.0,0.00014994,2]
[341885115,1731268235347,-1193.84,0.00014994,2]
[341885116,1731268235356,-500.0,0.00014994,2]
[341885117,1731268235365,-1193.84,0.00014994,2]
[341885118,1731268235374,-264.17237717,0.00014994,2]
[341885119,1731268235384,-1193.84,0.00014994,2]
[341885120,1731268235393,-1193.84,0.00014994,2]
[341885121,1731268235402,-1193.84,0.00014994,2]
[341885122,1731268235411,-1193.84,0.00014994,2]
[341885123,1731268235421,-1193.84,0.00014994,2]
[341885124,1731268235431,-1193.84,0.00014994,2]
[341885125,1731268235441,-1193.84,0.00014994,2]
[341885126,1731268235450,-1193.84,0.00014994,2]
[341885127,1731268235459,-1193.84,0.00014994,2]
[341885128,1731268235469,-1193.84,0.00014994,2]
[341885129,1731268235478,-1193.93,0.00014994,2]
[341885130,1731268235493,-500.0,0.00014994,2]
[341885131,1731268235502,-500.0,0.00014994,2]
[341885132,1731268235514,-500.0,0.00014994,2]
[341885133,1731268235523,-500.0,0.00014994,2]
[341885134,1731268235532,-500.0,0.00014994,2]
[341885135,1731268235543,-500.0,0.00014994,2]
[341885136,1731268235552,-500.0,0.00014994,2]
[341885137,1731268235561,-500.0,0.00014994,2]
[341885138,1731268235570,-500.0,0.00014994,2]
[341885139,1731268235581,-500.0,0.00014994,2]
[341885140,1731268235590,-500.0,0.00014994,2]
[341885141,1731268235599,-500.0,0.00014994,2]
[341885142,1731268235608,-500.0,0.00014994,2]
[341885143,1731268235617,-630.66153669,0.00014994,2]
[341885144,1731268235627,-1057.93,0.00014994,2]
[341885145,1731268235636,-1057.93,0.00014994,2]
[341885146,1731268235646,-1057.93,0.00014994,2]
[341885147,1731268235655,-1057.93,0.00014994,2]
[341885148,1731268235664,-1057.93,0.00014994,2]
[341885149,1731268235674,-1057.93,0.00014994,2]
[341885150,1731268235683,-1057.93,0.00014994,2]
[341885151,1731268235692,-1057.93,0.00014994,2]
[341885152,1731268235702,-1057.93,0.00014994,2]
[341885153,1731268235711,-1057.93,0.00014994,2]
[341885154,1731268235721,-1057.93,0.00014994,2]
[341885155,1731268235730,-1057.93,0.00014994,2]
[341885156,1731268235742,-1057.93,0.00014994,2]
[341885157,1731268235751,-1057.93,0.00014994,2]
[341885158,1731268235760,-1057.93,0.00014994,2]
[341885159,1731268235769,-1057.93,0.00014994,2]
[341885160,1731268235779,-1057.93,0.00014994,2]
[341885161,1731268235788,-1057.93,0.00014994,2]
[341885162,1731268235797,-1057.93,0.00014994,2]
[341885163,1731268235807,-1057.93,0.00014994,2]
[341885164,1731268235816,-1057.93,0.00014994,2]
[341885165,1731268235825,-1057.93,0.00014994,2]
[341885166,1731268235835,-299.48549387,0.00014994,2]
[341885167,1731268235844,-1057.93,0.00014994,2]
[341885168,1731268235853,-1058.03624628,0.00014994,2]
[341885169,1731268235863,-500.0,0.00014994,2]
[341885170,1731268235872,-500.0,0.00014994,2]
[341885171,1731268235882,-500.0,0.00014994,2]
[341885172,1731268235891,-500.0,0.00014994,2]
[341885173,1731268235900,-500.0,0.00014994,2]
[341885174,1731268235909,-500.0,0.00014994,2]
[341885175,1731268235918,-500.0,0.00014994,2]
[341885176,1731268235928,-500.0,0.00014994,2]
[341885177,1731268235937,-500.0,0.00014994,2]
[341885178,1731268235947,-500.0,0.00014994,2]
[341885179,1731268235956,-500.0,0.00014994,2]
[341885180,1731268235966,-170.9,0.00014994,2]
[341885181,1731268235975,-500.0,0.00014994,2]
[341885182,1731268235985,-500.0,0.00014994,2]
[341885183,1731268235995,-500.0,0.00014994,2]
[341885184,1731268236005,-500.0,0.00014994,2]
[341885185,1731268236014,-500.0,0.00014994,2]
[341885186,1731268236023,-500.0,0.00014994,2]
[341885187,1731268236033,-500.0,0.00014994,2]
[341885188,1731268236043,-500.0,0.00014994,2]
[341885189,1731268236052,-500.0,0.00014994,2]
[341885190,1731268236061,-500.0,0.00014994,2]
[341885191,1731268236071,-500.0,0.00014994,2]
[341885192,1731268236080,-500.0,0.00014994,2]
[341885193,1731268236089,-617.90616627,0.00014994,2]
[341885194,1731268236098,-500.0,0.00014994,2]
[341885195,1731268236107,-400.15834256,0.00014994,2]
[341885196,1731268236116,-500.0,0.00014994,2]
[341885197,1731268236126,-500.0,0.00014994,2]
[341885198,1731268236135,-500.0,0.00014994,2]
[341885199,1731268236144,-500.0,0.00014994,2]
[341885200,1731268236153,-500.0,0.00014994,2]
[341885201,1731268236163,-500.0,0.00014994,2]
[341885202,1731268236172,-500.0,0.00014994,2]
[341885203,1731268236181,-500.0,0.00014994,2]
[341885204,1731268236191,-464.25477496,0.00014994,2]
[341885205,1731268236200,-515.1,0.00014994,2]
[341885206,1731268236210,-500.0,0.00014994,2]
[341885207,1731268236219,-500.0,0.00014994,2]
[341885208,1731268236228,-500.0,0.00014994,2]
[341885209,1731268236240,-500.0,0.00014994,2]
[341885210,1731268236249,-443.51680837,0.00014994,2]
[341885211,1731268236258,-500.0,0.00014994,2]
[341885212,1731268236268,-500.0,0.00014994,2]
[341885213,1731268236277,-500.0,0.00014994,2]
[341885214,1731268236287,-500.0,0.00014994,2]
[341885215,1731268236296,-500.0,0.00014994,2]
[341885216,1731268236305,-500.0,0.00014994,2]
[341885217,1731268236315,-500.0,0.00014994,2]
[341885218,1731268236324,-500.0,0.00014994,2]
[341885219,1731268236334,-500.0,0.00014994,2]
[341885220,1731268236344,-500.0,0.00014994,2]
[341885221,1731268236353,-500.0,0.00014994,2]
[341885222,1731268236362,-500.0,0.00014994,2]
[341885223,1731268236371,-500.0,0.00014994,2]
[341885224,1731268236381,-500.0,0.00014994,2]
[341885225,1731268236390,-347.32860211,0.00014994,2]
[341885226,1731268236399,-500.0,0.00014994,2]
[341885227,1731268236409,-500.0,0.00014994,2]
[341885228,1731268236418,-500.0,0.00014994,2]
[341885230,1731268236427,-388.17139789,0.00014994,2]
[341885232,1731268236436,-326.78371817,0.00014994,2]
[341885234,1731268236446,-500.0,0.00014994,2]
[341885236,1731268236455,-500.0,0.00014994,2]
[341885238,1731268236464,-385.94,0.00014994,2]
[341885240,1731268236473,-861.04,0.00014994,2]
[341885242,1731268236482,-861.04,0.00014994,2]
[341885243,1731268236493,-861.04,0.00014994,2]
[341885245,1731268236502,-861.04,0.00014994,2]
[341885247,1731268236514,-500.0,0.00014994,2]
[341885249,1731268236524,-861.04,0.00014994,2]
[341885251,1731268236533,-500.0,0.00014994,2]
[341885253,1731268236543,-861.04,0.00014994,2]
[341885255,1731268236552,-500.0,0.00014994,2]
[341885257,1731268236562,-861.04,0.00014994,2]
[341885259,1731268236571,-861.04,0.00014994,2]
[341885261,1731268236581,-500.0,0.00014994,2]
[341885263,1731268236590,-861.04,0.00014994,2]
[341885265,1731268236600,-500.0,0.00014994,2]
[341885267,1731268236609,-861.04,0.00014994,2]
[341885269,1731268236619,-500.0,0.00014994,2]
[341885271,1731268236628,-861.04,0.00014994,2]
[341885273,1731268236637,-500.0,0.00014994,2]
[341885275,1731268236646,-861.04,0.00014994,2]
[341885277,1731268236657,-500.0,0.00014994,2]
[341885279,1731268236666,-861.04,0.00014994,2]
[341885281,1731268236676,-500.0,0.00014994,2]
[341885283,1731268236685,-861.04,0.00014994,2]
[341885285,1731268236694,-500.0,0.00014994,2]
[341885287,1731268236703,-861.04,0.00014994,2]
[341885289,1731268236713,-566.77,0.00014994,2]
[341885291,1731268236722,-861.04,0.00014994,2]
[341885293,1731268236731,-861.04,0.00014994,2]
[341885294,1731268236743,-861.04,0.00014994,2]
[341885296,1731268236753,-861.04,0.00014994,2]
[341885298,1731268236762,-500.0,0.00014994,2]
[341885300,1731268236771,-861.04,0.00014994,2]
[341885302,1731268236781,-861.04,0.00014994,2]
[341885304,1731268236790,-500.0,0.00014994,2]
[341885306,1731268236799,-861.04,0.00014994,2]
[341885308,1731268236808,-500.0,0.00014994,2]
[341885310,1731268236818,-861.04,0.00014994,2]
[341885312,1731268236826,-500.0,0.00014994,2]
[341885314,1731268236835,-861.08,0.00014994,2]
[341885316,1731268236844,-500.0,0.00014994,2]
[341885318,1731268236853,-500.0,0.00014994,2]
[341885320,1731268236862,-500.0,0.00014994,2]
[341885322,1731268236871,-500.0,0.00014994,2]
[341885324,1731268236880,-500.0,0.00014994,2]
[341885326,1731268236889,-500.0,0.00014994,2]
[341885328,1731268236898,-500.0,0.00014994,2]
[341885329,1731268236907,-553.31654903,0.00014994,2]
[341885331,1731268236916,-500.0,0.00014994,2]
[341885333,1731268236925,-500.0,0.00014994,2]
[341885335,1731268236934,-500.0,0.00014994,2]
[341885337,1731268236944,-500.0,0.00014994,2]
[341885339,1731268236952,-575.21,0.00014994,2]
[341885341,1731268236962,-500.0,0.00014994,2]
[341885343,1731268236971,-500.0,0.00014994,2]
[341885345,1731268236980,-500.0,0.00014994,2]
[341885347,1731268236991,-500.0,0.00014994,2]
[341885349,1731268237000,-500.0,0.00014994,2]
[341885351,1731268237010,-500.0,0.00014994,2]
[341885353,1731268237019,-500.0,0.00014994,2]
[341885355,1731268237028,-500.0,0.00014994,2]
[341885357,1731268237037,-500.0,0.00014994,2]
[341885359,1731268237046,-500.0,0.00014994,2]
[341885361,1731268237055,-518.58795449,0.00014994,2]
[341885363,1731268237065,-500.0,0.00014994,2]
[341885365,1731268237074,-500.0,0.00014994,2]
[341885367,1731268237084,-500.0,0.00014994,2]
[341885369,1731268237093,-505.5,0.00014994,2]
[341885371,1731268237102,-500.0,0.00014994,2]
[341885373,1731268237111,-500.0,0.00014994,2]
[341885375,1731268237121,-500.0,0.00014994,2]
[341885378,1731268237158,-500.0,0.00014994,2]
[341885379,1731268237167,-500.0,0.00014994,2]
[341885381,1731268237176,-500.0,0.00014994,2]
[341885383,1731268237185,-500.0,0.00014994,2]
[341885385,1731268237195,-500.0,0.00014994,2]
[341885388,1731268237208,-500.0,0.00014994,2]
[341885390,1731268237218,-500.0,0.00014994,2]
[341885392,1731268237227,-500.0,0.00014994,2]
[341885394,1731268237237,-500.0,0.00014994,2]
[341885396,1731268237247,-500.0,0.00014994,2]
[341885398,1731268237256,-500.0,0.00014994,2]
[341885400,1731268237266,-500.0,0.00014994,2]
[341885402,1731268237274,-500.0,0.00014994,2]
[341885404,1731268237284,-500.0,0.00014994,2]
[341885406,1731268237293,-500.0,0.00014994,2]
[341885408,1731268237302,-490.8871192,0.00014994,2]
[341885410,1731268237311,-524.0,0.00014995,2]
[341885412,1731268237321,-394372.68843683,0.00014995,2]
[341885441,1731268237597,-610441.45338678,0.00014995,2]
[341885443,1731268237609,-33535.03014202,0.00014995,2]
[341885445,1731268237620,-118585.31492918,0.00014995,2]
[341885447,1731268237631,-35197.28769666,0.00014995,2]
[341885449,1731268237642,-1121.50038392,0.00014995,2]
[341885453,1731268237671,-365.19994533,0.00014995,2]
[341885462,1731268237758,-3155.29499666,0.00014995,2]
[341885464,1731268237770,-52708.09647111,0.00014995,2]
[341885467,1731268237781,-40022.5,0.00014995,2]
[341885469,1731268237793,-9549.26343435,0.00014995,2]
[341885472,1731268237816,-2052.92,0.00014995,2]
[341885497,1731268238056,-500.0,0.00014993,2]
[341885499,1731268238066,-98110.78333704,0.00014995,2]
[341885501,1731268238077,-30140.0191668,0.00014995,2]
[341885570,1731268238547,-500.0,0.00014899,2]
[341885571,1731268238758,-452.91,0.00014993,2]
[341885572,1731268238770,-47.09,0.00014993,2]
[341885573,1731268238779,-500.0,0.00014994,2]
[341885574,1731268238789,-500.0,0.00014994,2]
[341885575,1731268238799,-500.0,0.00014994,2]
[341885576,1731268238808,-160.08541226,0.00014994,2]
[341885577,1731268238820,-339.91458774,0.00014994,2]
[341885578,1731268238829,-500.0,0.00014994,2]
[341885579,1731268238839,-146.53966385,0.00014994,2]
[341885581,1731268238851,-353.46033615,0.00014994,2]
[341885583,1731268238860,-500.0,0.00014994,2]
[341885585,1731268238870,-15.93736269,0.00014994,2]
[341885587,1731268238882,-484.06263731,0.00014994,2]
[341885589,1731268238892,-500.0,0.00014994,2]
[341885591,1731268238902,-1313.54625659,0.00014995,2]
[341885593,1731268238913,-848816.08719091,0.00014995,2]
[341885736,1731268240497,-500.0,0.00014994,2]
[341885738,1731268240507,-98.51025919,0.00014994,2]
[341885740,1731268240518,-401.48974081,0.00014994,2]
[341885742,1731268240527,-500.0,0.00014994,2]
[341885744,1731268240537,-500.0,0.00014994,2]
[341885746,1731268240546,-32.37917317,0.00014994,2]
[341885754,1731268240622,-467.62082683,0.00014994,2]
[341885756,1731268240631,-518.76157586,0.00014994,2]
[341885758,1731268240640,-389.68998081,0.00014995,2]
[341885760,1731268240651,-762.6751,0.00014995,2]
[341885767,1731268240705,-711.76321746,0.00014995,2]
[341885778,1731268240812,-837.57558349,0.00014995,2]
[341885780,1731268240823,-7186.5,0.00014995,2]
[341885783,1731268240835,-357.02410764,0.00014995,2]
[341886164,1731268244570,-500.0,0.00013698,2]
[341886166,1731268244582,-500.0,0.00014724,2]
[341886168,1731268244591,-500.0,0.00014899,2]
[341886171,1731268244600,-19380.87593298,0.00014995,2]
[341886180,1731268244645,-641012.03605859,0.00014995,2]
[341886184,1731268244658,-19052.32987276,0.00014995,2]
[341886186,1731268244671,-48616.44275827,0.00014995,2]
[341886188,1731268244684,-334.6086,0.00014995,2]
[341886192,1731268244696,-7816.94121609,0.00014995,2]
[341886195,1731268244709,-1959.70830103,0.00014995,2]
[341886198,1731268244721,-5432.60324873,0.00014995,2]
[341886202,1731268244734,-1210.18588554,0.00014995,2]
[341886206,1731268244752,-1739.59789287,0.00014995,2]
[341886209,1731268244765,-794.62383,0.00014995,2]
[341886232,1731268244874,-1488.65153638,0.00014995,2]
[341886235,1731268244886,-2393.76,0.00014995,2]
[341886238,1731268244897,-1998.0,0.00014995,2]
[341886253,1731268244963,-11360.02006376,0.00014995,2]
[341886256,1731268244974,-3604.41633151,0.00014995,2]
[341886454,1731268246540,-24047.97447315,0.00014995,2]
[341886459,1731268246553,-610.54517073,0.00014995,2]
[341886463,1731268246566,-40030.0,0.00014995,2]
[341886467,1731268246580,-4002.5,0.00014995,2]
[341886474,1731268246592,-989.78912005,0.00014995,2]
[341886482,1731268246617,-1816.60356644,0.00014995,2]
[341886486,1731268246629,-7684.3,0.00014995,2]
[341886553,1731268246960,-311.175,0.00014995,2]
[341886558,1731268246973,-640.903,0.00014995,2]
[341886573,1731268247047,-48201.35616,0.00014995,2]
[341886589,1731268247126,-687.98820611,0.00014995,2]
[341886604,1731268247210,-1265.40679145,0.00014995,2]
[341886607,1731268247222,-348.99153309,0.00014995,2]
[341886612,1731268247234,-262.66020002,0.00014995,2]
[341886620,1731268247279,-803.604,0.00014995,2]
[341886622,1731268247290,-99153.85351608,0.00014995,2]
[341887217,1731268610114,1000.0,0.00027,60]
[341887218,1731268662913,1463.1,0.00011897,2]
[341887222,1731268932093,157.37,0.00010906,2]
[341887226,1731269115735,922.91,0.00014312,7]
[341887227,1731269155778,-157.37,0.00012269,2]
[341887228,1731269155804,-261.4367935,0.00013272,2]
[341887229,1731269155828,-261.43679348,0.00013353,2]
[341887230,1731269155852,-226.61,0.00013371,2]
[341887231,1731269161237,300.0,0.00013432,2]
[341887232,1731269168363,-48793.14641302,0.00013433,2]
[341887234,1731269226140,-164.49,0.00012567,2]
[341887235,1731269226164,-150.0,0.00013484,2]
[341887236,1731269226184,-1096.45580484,0.00013598,2]
[341887237,1731269226205,-1000.0,0.00013621,2]
[341887238,1731269226227,-157.37,0.00013633,2]
[341887239,1731269226249,-201.96,0.00013676,2]
[341887240,1731269226274,-853.67026433,0.00013676,2]
[341887241,1731269235098,-1508.67633575,0.00013676,2]
[341887254,1731269431530,-261.43679348,0.00013589,2]
[341887255,1731269431540,-451.11,0.00013672,2]
[341887256,1731269431549,-250.0,0.00013689,2]
[341887257,1731269431558,-150.0,0.00013697,2]
[341887258,1731269431568,-4312.56330238,0.00013698,2]
[341887259,1731269434333,-32728.65183107,0.00013698,2]
[341887260,1731269434344,-1695.501234,0.00013698,2]
[341887261,1731269434442,-591.92852923,0.00013698,2]
[341887262,1731269434454,-495.72833055,0.00013698,2]
[341887263,1731269434465,-5604.8883056,0.00013698,2]
[341887264,1731269434479,-2613.19812,0.00013698,2]
[341887265,1731269434490,-1342.42776,0.00013698,2]
[341887266,1731269434501,-1300.0,0.00013698,2]
[341887267,1731269434512,-3088.7376355,0.00013698,2]
[341887268,1731269434524,-397.79058894,0.00013698,2]
[341887269,1731269434536,-332.17124173,0.00013698,2]
[341887270,1731269434548,-1311.80803142,0.00013698,2]
[341887271,1731269434562,-20038.97508958,0.00013698,2]
[341887272,1731269434571,-1740.62986856,0.00013698,2]
[341887273,1731269434581,-300.0,0.00013699,2]
[341887274,1731269434590,-200.0,0.00013699,2]
[341887275,1731269434599,-375.0,0.000137,2]
[341887276,1731269434608,-23900.0,0.00013701,2]
[341887277,1731269434617,-159.56,0.00013704,2]
[341887278,1731269434627,-250.0,0.00013724,2]
[341887279,1731269434636,-2236.36,0.00013743,2]
[341887280,1731269434645,-162.11,0.00013743,2]
[341887281,1731269434654,-418.28,0.00013759,2]
[341887282,1731269434663,-348.95,0.00013946,2]
[341887284,1731269434672,-1463.1,0.00014161,2]
[341887286,1731269434681,-164.05,0.00014178,2]
[341887288,1731269434690,-156.77,0.00014186,2]
[341887290,1731269434699,-253.56684613,0.0001424,2]
[341887292,1731269434709,-150.0,0.00014322,2]
[341887294,1731269434719,-313.667,0.00014322,2]
[341887296,1731269434728,-1091.0,0.00014322,2]
[341887298,1731269434737,-1990.0,0.00014324,2]
[341887300,1731269434746,-2910.0,0.00014324,2]
[341887301,1731269434755,-814.0,0.00014324,2]
[341887302,1731269434764,-426.22825879,0.00014556,2]
[341887303,1731269434774,-13213.1361975,0.000147,3]
[341887304,1731269434786,-2817.8638025,0.000147,3]
[341887305,1731269434795,-150.0,0.0001477,2]
[341887306,1731269434805,-484.41835859,0.00014795,2]
[341887307,1731269434814,-524.0,0.000148,2]
[341887308,1731269434823,-1000.0,0.000148,2]
[341887309,1731269434832,-1000.0,0.000148,2]
[341887310,1731269434841,-484.41835859,0.00014807,2]
[341887311,1731269434850,-484.41835859,0.00014818,2]
[341887312,1731269434859,-255.0,0.0001482,2]
[341887313,1731269434868,-150.0,0.00014827,2]
[341887314,1731269434877,-484.41835859,0.0001483,2]
[341887315,1731269434886,-484.41835859,0.00014841,2]
[341887316,1731269434898,-484.41835859,0.00014853,2]
[341887317,1731269434907,-484.41835859,0.00014864,2]
[341887318,1731269434916,-150.0,0.0001487,2]
[341887319,1731269434925,-484.41835859,0.00014876,2]
[341887320,1731269434934,-484.41835859,0.00014887,2]
[341887321,1731269434943,-436.78128791,0.00014893,2]
[341887322,1731269434952,-175.44253213,0.00014893,2]
[341887323,1731269434961,-7312.5262,0.00014894,2]